[Event "GER-ch Youth U10 2020"]
[Site "Willingen"]
[Date "2020.10.29"]
[Round "4.13"]
[White "Aweh, Mads"]
[Black "Radeke, Timothy"]
[Result "1-0"]
[ECO "B00"]
[WhiteElo "1328"]
[BlackElo "1143"]
[Annotator "NA RC"]
[PlyCount "105"]
[EventDate "2020.10.27"]
[EventType "swiss"]
[EventRounds "7"]
[EventCountry "GER"]
[SourceTitle "playchess.com"]
[Source "ChessBase"]
[SourceQuality "1"]
[TimeControl "40/4500+30:900+30"]

1. e4 {[%emt 0:00:00]} d6 {[%emt 0:00:00]} 2. Nf3 {[%emt 0:00:05]} Nf6 {[%emt 0:00:04]} 3. Nc3 {[%emt 0:00:22]} Nbd7 {[%emt 0:00:31]} 4. d4 {[%emt 0:00:44]} e5 {[%emt 0:00:05]} 5. Bc4 {[%emt 0:00:47]} Be7 {[%emt 0:00:10]} 6. O-O {[%emt 0:00:21]} c6 {[%emt 0:00:05]} 7. a3 {[%emt 0:01:12]} a5 {[%emt 0:00:21]} 8. a4 {[%emt 0:00:43]} Qc7 {[%emt 0:00:06]} 9. b3 {[%emt 0:01:04]} h6 {[%emt 0:00:40]} 10. Bb2 {[%emt 0:00:49]} g5 {[%emt 0:01:18]} 11. h3 {[%emt 0:02:31]} Nf8 {[%emt 0:00:16]} 12. dxe5 {[%emt 0:01:47]} dxe5 {[%emt 0:00:11]} 13. Ne2 {[%emt 0:00:40]} Ng6 {[%emt 0:00:10]} 14. Qd3 {[%emt 0:02:14]} g4 {[%emt 0:05:15]} 15. hxg4 {[%emt 0:00:45]} Nxg4 {[%emt 0:00:16]} 16. Rad1 {[%emt 0:02:04]} h5 {[%emt 0:01:00]} 17. Nh2 {[%emt 0:00:52]} h4 {[%emt 0:03:08]} 18. Qf3 {[%emt 0:05:08]} Nf6 {[%emt 0:01:21]} 19. g3 {[%emt 0:05:23]} hxg3 {[%emt 0:04:01]} 20. Nxg3 {[%emt 0:03:34]} Bh3 {[%emt 0:01:09]} 21. Rfe1 {[%emt 0:00:17]} Nh4 {[%emt 0:00:43]} 22. Qc3 {[%emt 0:02:36]} Bb4 {[%emt 0:00:55]} 23. Qxe5+ {[%emt 0:00:24]} Qxe5 {[%emt 0:00:08]} 24. Bxe5 {[%emt 0:00:09]} Bxe1 {[%emt 0:00:09]} 25. Bxf6 {[%emt 0:00:15]} Rh6 {[%emt 0:00:20]} 26. Bxh4 {[%emt 0:00:35]} Bxf2+ {[%emt 0:00:30]} 27. Kxf2 {[%emt 0:00:15]} Rxh4 {[%emt 0:00:14]} 28. Nf3 {[%emt 0:01:09]} Bg4 {[%emt 0:00:29]} 29. Nxh4 {[%emt 0:01:29]} Bxd1 {[%emt 0:00:10]} 30. Bd3 {[%emt 0:00:50]} Rb8 {[%emt 0:03:22]} 31. Nhf5 {[%emt 0:00:46]} b5 {[%emt 0:01:28]} 32. axb5 {[%emt 0:00:29]} cxb5 {[%emt 0:00:29]} 33. Bxb5+ {[%emt 0:00:29]} Kd8 {[%emt 0:01:28]} 34. Bd3 {[%emt 0:00:34]} Kd7 {[%emt 0:01:37]} 35. Ne2 {[%emt 0:00:33]} Rc8 {[%emt 0:00:37]} 36. Ne3 {[%emt 0:00:47]} Bxe2 {[%emt 0:00:22]} 37. Bxe2 {[%emt 0:00:19]} Ra8 {[%emt 0:01:25]} 38. Nc4 {[%emt 0:01:19]} Ke6 {[%emt 0:01:09]} 39. Ke3 {[%emt 0:01:54]} a4 {[%emt 0:00:20]} 40. bxa4 {[%emt 0:01:07]} Rxa4 {[%emt 0:00:14]} 41. Kd4 {[%emt 0:16:15]} f6 {[%emt 0:15:52]} 42. Bg4+ {[%emt 0:00:47]} Ke7 {[%emt 0:01:01]} 43. c3 {[%emt 0:01:06]} Kf7 {[%emt 0:00:57]} 44. Kd5 {[%emt 0:01:12]} Ke7 {[%emt 0:00:27]} 45. Nb6 {[%emt 0:02:11]} Ra3 {[%emt 0:00:37]} 46. Kd4 {[%emt 0:00:37]} Rb3 {[%emt 0:00:31]} 47. Nd5+ {[%emt 0:00:27]} Kf7 {[%emt 0:01:43]} 48. c4 {[%emt 0:00:14]} Ra3 {[%emt 0:01:30]} 49. Kc5 {[%emt 0:00:53]} Ra5+ {[%emt 0:00:57]} 50. Kb6 {[%emt 0:00:51]} Ra4 {[%emt 0:01:00]} 51. Kb5 {[%emt 0:00:13]} Ra1 {[%emt 0:02:05]} 52. Bf5 {[%emt 0:01:42]} Rc1 {[%emt 0:01:45]} 53. c5 {[%emt 0:00:36]} 1-0

[Event "GER-ch Youth U10 2020"]
[Site "Willingen"]
[Date "2020.10.29"]
[Round "4.14"]
[White "Mohammadzadeh, Daris"]
[Black "Schuricht, Emil Frederick"]
[Result "0-1"]
[ECO "B13"]
[WhiteElo "1311"]
[BlackElo "1451"]
[Annotator "NA RC"]
[PlyCount "134"]
[EventDate "2020.10.27"]
[EventType "swiss"]
[EventRounds "7"]
[EventCountry "GER"]
[SourceTitle "playchess.com"]
[Source "ChessBase"]
[SourceQuality "1"]
[TimeControl "40/4500+30:900+30"]

1. e4 {[%emt 0:00:00]} c6 {[%emt 0:00:00]} 2. d4 {[%emt 0:00:00]} d5 {[%emt 0:00:00]} 3. exd5 {[%emt 0:00:09]} cxd5 {[%emt 0:00:00]} 4. c4 {[%emt 0:00:25]} Nf6 {[%emt 0:00:00]} 5. Nc3 {[%emt 0:00:43]} Nc6 {[%emt 0:00:00]} 6. Nf3 {[%emt 0:01:10]} Bg4 {[%emt 0:00:24]} 7. cxd5 {[%emt 0:03:25]} Nxd5 {[%emt 0:02:33]} 8. Be2 {[%emt 0:02:16]} e6 {[%emt 0:01:28]} 9. Be3 {[%emt 0:05:15]} Bb4 {[%emt 0:05:39]} 10. Rc1 {[%emt 0:04:17]} O-O {[%emt 0:01:59]} 11. O-O {[%emt 0:02:57]} Nce7 {[%emt 0:04:14]} 12. Ne5 {[%emt 0:05:38]} Bxe2 {[%emt 0:00:37]} 13. Qxe2 {[%emt 0:01:46]} Rc8 {[%emt 0:06:01]} 14. Qd3 {[%emt 0:06:18]} Ng6 {[%emt 0:06:37]} 15. Nxd5 {[%emt 0:06:53]} Qxd5 {[%emt 0:00:55]} 16. Nxg6 {[%emt 0:00:34]} hxg6 {[%emt 0:00:09]} 17. a3 {[%emt 0:04:22]} Ba5 {[%emt 0:03:01]} 18. Rfd1 {[%emt 0:06:37]} Bb6 {[%emt 0:01:40]} 19. f3 {[%emt 0:01:53]} Rxc1 {[%emt 0:00:22]} 20. Rxc1 {[%emt 0:01:07]} Rd8 {[%emt 0:00:21]} 21. Rd1 {[%emt 0:01:11]} e5 {[%emt 0:01:29]} 22. Qe4 {[%emt 0:02:09]} Qxe4 {[%emt 0:01:17]} 23. fxe4 {[%emt 0:00:14]} Bxd4 {[%emt 0:00:39]} 24. Bxd4 {[%emt 0:00:16]} exd4 {[%emt 0:00:07]} 25. Rd3 {[%emt 0:00:59]} f6 {[%emt 0:00:40]} 26. b4 {[%emt 0:01:12]} Kf7 {[%emt 0:04:58]} 27. Kf2 {[%emt 0:04:03]} Ke6 {[%emt 0:00:23]} 28. Ke2 {[%emt 0:02:18]} Ke5 {[%emt 0:00:56]} 29. Rg3 {[%emt 0:01:03]} Kxe4 {[%emt 0:04:54]} 30. Rxg6 {[%emt 0:01:28]} Rd7 {[%emt 0:01:05]} 31. Rg4+ {[%emt 0:01:15]} Ke5 {[%emt 0:01:34]} 32. Kd3 f5 {[%emt 0:01:41]} 33. Rh4 {[%emt 0:02:33]} g5 {[%emt 0:00:24]} 34. Rh5 {[%emt 0:01:08]} g4 {[%emt 0:00:19]} 35. h3 {[%emt 0:00:27]} g3 {[%emt 0:08:13]} 36. Rh4 {[%emt 0:00:50]} b5 {[%emt 0:00:27]} 37. Rh8 {[%emt 0:01:36]} Rc7 {[%emt 0:01:32]} 38. Re8+ {[%emt 0:00:52]} Kf4 {[%emt 0:00:08]} 39. Re2 {[%emt 0:01:27]} Rc4 {[%emt 0:02:35]} 40. Rd2 {[%emt 0:01:29]} Ke5 {[%emt 0:02:42]} 41. Re2+ {[%emt 0:15:34]} Kd5 {[%emt 0:15:07]} 42. h4 {[%emt 0:00:54]} Rc3+ {[%emt 0:00:09]} 43. Kd2 {[%emt 0:00:32]} Rxa3 {[%emt 0:00:20]} 44. h5 {[%emt 0:00:07]} Kc4 {[%emt 0:05:40]} 45. Re6 {[%emt 0:01:50]} Ra2+ {[%emt 0:01:13]} 46. Ke1 {[%emt 0:00:37]} Rxg2 {[%emt 0:00:58]} 47. h6 {[%emt 0:00:55]} Rh2 {[%emt 0:00:30]} 48. Kf1 {[%emt 0:00:25]} d3 {[%emt 0:00:50]} 49. h7 {[%emt 0:01:00]} Rxh7 {[%emt 0:00:26]} 50. Kg2 {[%emt 0:00:08]} Rd7 {[%emt 0:00:10]} 51. Re1 {[%emt 0:00:28]} d2 {[%emt 0:00:07]} 52. Rd1 {[%emt 0:00:23]} Kc3 {[%emt 0:00:06]} 53. Kxg3 {[%emt 0:00:19]} Kc2 {[%emt 0:00:05]} 54. Rf1 {[%emt 0:00:10]} d1=Q {[%emt 0:00:04]} 55. Rxd1 {[%emt 0:00:44]} Rxd1 {[%emt 0:00:10]} 56. Kf4 {[%emt 0:00:02]} Rf1+ {[%emt 0:00:11]} 57. Ke3 {[%emt 0:00:04]} f4+ {[%emt 0:00:08]} 58. Ke2 {[%emt 0:00:08]} Rh1 {[%emt 0:00:06]} 59. Kf3 {[%emt 0:00:09]} Kb3 {[%emt 0:00:07]} 60. Kg2 {[%emt 0:00:08]} Rc1 {[%emt 0:00:09]} 61. Kf3 {[%emt 0:00:12]} Kxb4 {[%emt 0:00:16]} 62. Kxf4 {[%emt 0:00:05]} a5 {[%emt 0:00:01]} 63. Ke3 {[%emt 0:00:05]} a4 {[%emt 0:00:06]} 64. Kd2 {[%emt 0:00:09]} Rc3 {[%emt 0:00:02]} 65. Ke2 {[%emt 0:00:07]} a3 {[%emt 0:00:01]} 66. Kd1 {[%emt 0:00:00]} a2 {[%emt 0:00:00]} 67. Kd2 {[%emt 0:00:00]} a1=Q {[%emt 0:07:55]} 0-1

[Event "GER-ch Youth U10 2020"]
[Site "Willingen"]
[Date "2020.10.29"]
[Round "4.15"]
[White "Stichter, Constantin"]
[Black "Klasen, Ennio Rodriguez"]
[Result "1-0"]
[ECO "B06"]
[WhiteElo "1476"]
[BlackElo "1297"]
[Annotator "NA RC"]
[PlyCount "115"]
[EventDate "2020.10.27"]
[EventType "swiss"]
[EventRounds "7"]
[EventCountry "GER"]
[SourceTitle "playchess.com"]
[Source "ChessBase"]
[SourceQuality "1"]
[TimeControl "40/4500+30:900+30"]

1. e4 {[%emt 0:00:01]} g6 {[%emt 0:00:00]} 2. d4 {[%emt 0:04:47]} Bg7 {[%emt 0:00:00]} 3. c3 {[%emt 0:00:06]} c5 {[%emt 0:00:45]} 4. Be3 {[%emt 0:00:36]} e6 {[%emt 0:06:08]} 5. g3 {[%emt 0:00:52]} Ne7 {[%emt 0:00:28]} 6. Bg2 {[%emt 0:00:11]} O-O {[%emt 0:00:26]} 7. e5 {[%emt 0:01:09]} f6 {[%emt 0:01:05]} 8. f4 {[%emt 0:00:13]} fxe5 {[%emt 0:01:06]} 9. dxe5 {[%emt 0:00:41]} Nf5 {[%emt 0:03:38]} 10. Bxc5 {[%emt 0:00:19]} Rf7 {[%emt 0:01:31]} 11. Nf3 {[%emt 0:00:53]} b6 {[%emt 0:00:54]} 12. Ng5 {[%emt 0:00:42]} d5 {[%emt 0:05:42]} 13. exd6 {[%emt 0:01:23]} Rb7 {[%emt 0:00:16]} 14. Bf2 {[%emt 0:01:34]} Qd7 {[%emt 0:02:32]} 15. O-O {[%emt 0:02:30]} h6 {[%emt 0:01:38]} 16. Nxe6 {[%emt 0:00:21]} Qxd6 {[%emt 0:01:16]} 17. Qxd6 {[%emt 0:01:17]} Nxd6 {[%emt 0:00:09]} 18. Bxb7 {[%emt 0:00:19]} Bxb7 {[%emt 0:00:13]} 19. Nxg7 {[%emt 0:00:07]} Kxg7 {[%emt 0:00:19]} 20. Bd4+ {[%emt 0:00:07]} Kh7 {[%emt 0:00:43]} 21. Nd2 {[%emt 0:00:07]} Nc6 {[%emt 0:00:40]} 22. Be5 {[%emt 0:00:14]} Nxe5 {[%emt 0:02:02]} 23. fxe5 {[%emt 0:01:05]} Ne4 {[%emt 0:01:23]} 24. Nxe4 {[%emt 0:00:14]} Bxe4 {[%emt 0:00:11]} 25. Rae1 {[%emt 0:00:04]} Bd5 {[%emt 0:00:35]} 26. b3 {[%emt 0:00:10]} Re8 {[%emt 0:02:16]} 27. c4 {[%emt 0:00:45]} Be6 {[%emt 0:00:25]} 28. Kg2 {[%emt 0:00:21]} Kg7 {[%emt 0:00:49]} 29. Rd1 {[%emt 0:00:13]} Bc8 {[%emt 0:01:13]} 30. Rfe1 {[%emt 0:00:17]} Kf7 {[%emt 0:08:16]} 31. Kf3 {[%emt 0:00:17]} Bb7+ {[%emt 0:00:41]} 32. Kf4 {[%emt 0:00:22]} Bc8 {[%emt 0:02:11]} 33. Rd6 {[%emt 0:01:14]} Be6 {[%emt 0:01:49]} 34. Rf1 {[%emt 0:00:24]} Kg8 {[%emt 0:01:11]} 35. Ke4 {[%emt 0:00:11]} Bf5+ {[%emt 0:04:48]} 36. Kd4 {[%emt 0:00:33]} h5 {[%emt 0:01:57]} 37. h4 {[%emt 0:01:05]} Kg7 {[%emt 0:01:35]} 38. b4 {[%emt 0:01:17]} Kf7 {[%emt 0:00:59]} 39. Rf3 {[%emt 0:00:23]} Ke7 {[%emt 0:00:23]} 40. Ra3 {[%emt 0:00:09]} Ra8 {[%emt 0:01:12]} 41. c5 {[%emt 0:15:08]} bxc5+ {[%emt 0:15:15]} 42. bxc5 {[%emt 0:00:08]} a5 {[%emt 0:00:57]} 43. Rb3 {[%emt 0:00:08]} Ra7 {[%emt 0:01:05]} 44. a3 {[%emt 0:00:18]} a4 {[%emt 0:00:20]} 45. Rb8 {[%emt 0:00:07]} Rc7 {[%emt 0:01:10]} 46. Rh8 Rd7 {[%emt 0:01:26]} 47. Rh7+ {[%emt 0:00:36]} Kd8 {[%emt 0:01:58]} 48. Rhxd7+ {[%emt 0:00:31]} Bxd7 {[%emt 0:00:50]} 49. e6 {[%emt 0:00:08]} g5 {[%emt 0:00:43]} 50. hxg5 {[%emt 0:00:12]} h4 {[%emt 0:00:15]} 51. gxh4 {[%emt 0:00:07]} Ke8 {[%emt 0:01:07]} 52. Rxd7 {[%emt 0:00:09]} Kf8 {[%emt 0:00:09]} 53. Ra7 {[%emt 0:00:12]} Ke8 {[%emt 0:00:11]} 54. c6 {[%emt 0:00:06]} Kd8 {[%emt 0:00:49]} 55. c7+ {[%emt 0:00:15]} Kc8 {[%emt 0:00:20]} 56. e7 {[%emt 0:00:09]} Kd7 {[%emt 0:00:14]} 57. e8=Q+ Kd6 58. c8=N# 1-0

[Event "GER-ch Youth U10 2020"]
[Site "Willingen"]
[Date "2020.10.29"]
[Round "4.16"]
[White "Barthel, Jacob"]
[Black "Huang, Luca Hanson"]
[Result "1/2-1/2"]
[ECO "A46"]
[WhiteElo "1231"]
[BlackElo "1570"]
[Annotator "NA RC"]
[PlyCount "61"]
[EventDate "2020.10.27"]
[EventType "swiss"]
[EventRounds "7"]
[EventCountry "GER"]
[SourceTitle "playchess.com"]
[Source "ChessBase"]
[SourceQuality "1"]
[TimeControl "40/4500+30:900+30"]

1. d4 {[%emt 0:00:00]} Nf6 {[%emt 0:00:00]} 2. Nf3 {[%emt 0:00:00]} e6 {[%emt 0:00:00]} 3. Bf4 {[%emt 0:00:14]} d5 {[%emt 0:00:12]} 4. Nc3 {[%emt 0:00:49]} Bd6 {[%emt 0:00:30]} 5. Bg3 {[%emt 0:00:13]} O-O {[%emt 0:00:10]} 6. e3 {[%emt 0:00:21]} c5 {[%emt 0:01:01]} 7. Bd3 {[%emt 0:02:26]} Qc7 {[%emt 0:00:53]} 8. Nb5 {[%emt 0:01:17]} Qa5+ {[%emt 0:00:23]} 9. b4 {[%emt 0:02:05]} Qxb4+ {[%emt 0:07:36]} 10. c3 {[%emt 0:00:11]} Qa5 {[%emt 0:04:57]} 11. Bxd6 {[%emt 0:05:09]} Rd8 {[%emt 0:00:39]} 12. Bc7 {[%emt 0:00:26]} Qa6 {[%emt 0:01:10]} 13. Bxd8 {[%emt 0:00:33]} c4 {[%emt 0:01:40]} 14. Nc7 {[%emt 0:00:45]} Qd6 {[%emt 0:00:08]} 15. Nxa8 {[%emt 0:00:39]} Qxd8 {[%emt 0:00:09]} 16. Bc2 {[%emt 0:00:16]} b5 {[%emt 0:00:19]} 17. Rb1 {[%emt 0:00:32]} a6 {[%emt 0:00:19]} 18. h3 {[%emt 0:00:37]} Bb7 {[%emt 0:00:06]} 19. g4 {[%emt 0:00:06]} Bxa8 {[%emt 0:00:10]} 20. g5 {[%emt 0:00:07]} Ne4 {[%emt 0:00:37]} 21. h4 {[%emt 0:01:30]} Nxc3 {[%emt 0:00:14]} 22. Qd2 {[%emt 0:01:36]} Nxb1 {[%emt 0:02:40]} 23. Bxb1 {[%emt 0:00:05]} Qc7 {[%emt 0:00:22]} 24. h5 {[%emt 0:00:50]} c3 {[%emt 0:00:09]} 25. Qc2 {[%emt 0:00:05]} g6 {[%emt 0:00:22]} 26. hxg6 {[%emt 0:00:08]} hxg6 {[%emt 0:00:35]} 27. Ne5 {[%emt 0:02:09]} b4 {[%emt 0:02:08]} 28. Nxg6 {[%emt 0:00:15]} fxg6 {[%emt 0:00:12]} 29. Qxg6+ {[%emt 0:00:07]} Qg7 {[%emt 0:00:05]} 30. Qe8+ {[%emt 0:00:11]} Qf8 {[%emt 0:00:25]} 31. Rh8+ {[%emt 0:00:10]} 1/2-1/2

[Event "GER-ch Youth U10 2020"]
[Site "Willingen"]
[Date "2020.10.29"]
[Round "4.17"]
[White "Middendorf, Sven-Jonas"]
[Black "Gulamzada, Elmir"]
[Result "1-0"]
[ECO "C97"]
[WhiteElo "1355"]
[BlackElo "1397"]
[Annotator "NA RC"]
[PlyCount "91"]
[EventDate "2020.10.27"]
[EventType "swiss"]
[EventRounds "7"]
[EventCountry "GER"]
[SourceTitle "playchess.com"]
[Source "ChessBase"]
[SourceQuality "1"]
[TimeControl "40/4500+30:900+30"]

1. e4 {[%emt 0:00:00]} e5 {[%emt 0:00:00]} 2. Nf3 {[%emt 0:00:00]} Nc6 {[%emt 0:00:05]} 3. Bb5 {[%emt 0:00:00]} a6 {[%emt 0:00:06]} 4. Ba4 {[%emt 0:00:00]} Nf6 {[%emt 0:00:31]} 5. O-O {[%emt 0:00:02]} Be7 {[%emt 0:00:41]} 6. Re1 {[%emt 0:00:05]} b5 {[%emt 0:00:38]} 7. Bb3 {[%emt 0:00:14]} d6 {[%emt 0:00:27]} 8. h3 {[%emt 0:00:19]} O-O {[%emt 0:01:00]} 9. c3 {[%emt 0:00:08]} Na5 {[%emt 0:00:22]} 10. Bc2 {[%emt 0:00:14]} c5 {[%emt 0:00:37]} 11. d4 {[%emt 0:05:04]} Qc7 {[%emt 0:00:57]} 12. d5 {[%emt 0:04:16]} Bd7 {[%emt 0:00:43]} 13. Nbd2 {[%emt 0:03:35]} c4 {[%emt 0:00:33]} 14. Nf1 {[%emt 0:05:42]} Nb7 {[%emt 0:00:32]} 15. Ng3 {[%emt 0:04:25]} Nc5 {[%emt 0:00:59]} 16. Bd2 {[%emt 0:10:11]} Rab8 {[%emt 0:00:52]} 17. b4 {[%emt 0:02:13]} cxb3 18. axb3 a5 {[%emt 0:03:01]} 19. c4 {[%emt 0:02:40]} b4 {[%emt 0:02:19]} 20. Bg5 {[%emt 0:09:34]} h6 {[%emt 0:01:36]} 21. Bd2 {[%emt 0:02:39]} Ra8 {[%emt 0:06:33]} 22. Nh2 {[%emt 0:01:50]} Qa7 {[%emt 0:04:19]} 23. Bxb4 {[%emt 0:02:34]} Qb6 {[%emt 0:03:47]} 24. Bd2 {[%emt 0:02:49]} Nh7 {[%emt 0:03:07]} 25. Qb1 {[%emt 0:04:53]} Bh4 {[%emt 0:01:28]} 26. Nh1 {[%emt 0:04:45]} a4 {[%emt 0:08:07]} 27. bxa4 {[%emt 0:04:04]} Qxb1 {[%emt 0:01:08]} 28. Rexb1 {[%emt 0:01:10]} Bxa4 {[%emt 0:00:51]} 29. Bxa4 {[%emt 0:00:43]} Rxa4 {[%emt 0:00:51]} 30. Rxa4 {[%emt 0:00:12]} Nxa4 {[%emt 0:00:06]} 31. Nf3 {[%emt 0:00:34]} Bf6 {[%emt 0:00:39]} 32. Rc1 {[%emt 0:01:38]} Nc5 {[%emt 0:00:06]} 33. Be3 {[%emt 0:01:09]} Nxe4 {[%emt 0:00:39]} 34. Nd2 {[%emt 0:01:28]} Nxd2 {[%emt 0:00:25]} 35. Bxd2 {[%emt 0:00:04]} Bg5 {[%emt 0:00:11]} 36. Bxg5 {[%emt 0:01:00]} Nxg5 {[%emt 0:00:06]} 37. Ng3 {[%emt 0:00:30]} Kh7 {[%emt 0:01:43]} 38. h4 {[%emt 0:00:15]} f5 {[%emt 0:01:09]} 39. hxg5 {[%emt 0:00:20]} hxg5 {[%emt 0:00:20]} 40. c5 {[%emt 0:00:59]} dxc5 41. Rxc5 {[%emt 0:15:57]} Kg6 {[%emt 0:16:07]} 42. Rc6+ {[%emt 0:00:23]} Rf6 {[%emt 0:00:36]} 43. Rxf6+ {[%emt 0:00:31]} Kxf6 {[%emt 0:00:08]} 44. d6 {[%emt 0:00:14]} f4 {[%emt 0:00:21]} 45. Ne4+ {[%emt 0:01:32]} Ke6 {[%emt 0:00:12]} 46. f3 1-0

[Event "GER-ch Youth U10 2020"]
[Site "Willingen"]
[Date "2020.10.29"]
[Round "4.19"]
[White "Uyar, Levin"]
[Black "Laux, Filip"]
[Result "0-1"]
[ECO "B19"]
[WhiteElo "1471"]
[BlackElo "1198"]
[Annotator "NA RC"]
[PlyCount "116"]
[EventDate "2020.10.27"]
[EventType "swiss"]
[EventRounds "7"]
[EventCountry "GER"]
[SourceTitle "playchess.com"]
[Source "ChessBase"]
[SourceQuality "1"]
[TimeControl "40/4500+30:900+30"]

1. e4 {[%emt 0:00:00]} c6 {[%emt 0:00:00]} 2. d4 {[%emt 0:00:00]} d5 {[%emt 0:00:00]} 3. Nc3 {[%emt 0:00:00]} dxe4 {[%emt 0:00:16]} 4. Nxe4 {[%emt 0:00:00]} Bf5 {[%emt 0:00:30]} 5. Ng3 {[%emt 0:00:00]} Bg6 {[%emt 0:00:34]} 6. Nf3 {[%emt 0:00:02]} Nd7 {[%emt 0:00:22]} 7. h4 {[%emt 0:00:10]} h6 {[%emt 0:00:32]} 8. Bd3 {[%emt 0:00:19]} Bxd3 {[%emt 0:00:33]} 9. Qxd3 {[%emt 0:00:06]} e6 {[%emt 0:01:06]} 10. Bd2 {[%emt 0:00:20]} Ngf6 {[%emt 0:00:30]} 11. O-O-O {[%emt 0:00:18]} Be7 {[%emt 0:00:45]} 12. Rdg1 {[%emt 0:01:05]} Qb6 {[%emt 0:00:46]} 13. Kb1 {[%emt 0:01:02]} c5 {[%emt 0:00:45]} 14. Bc3 {[%emt 0:03:39]} Rc8 {[%emt 0:02:57]} 15. Re1 {[%emt 0:02:22]} Nd5 {[%emt 0:01:33]} 16. dxc5 {[%emt 0:03:21]} Nxc5 {[%emt 0:00:35]} 17. Qc4 {[%emt 0:01:33]} O-O {[%emt 0:00:50]} 18. Qd4 {[%emt 0:06:43]} Bf6 {[%emt 0:01:53]} 19. Ne5 {[%emt 0:01:36]} Na4 {[%emt 0:10:45]} 20. Qxb6 {[%emt 0:02:15]} Naxc3+ {[%emt 0:01:11]} 21. bxc3 {[%emt 0:00:34]} Nxb6 {[%emt 0:00:24]} 22. Nh5 {[%emt 0:02:19]} Bxe5 {[%emt 0:01:27]} 23. Rxe5 {[%emt 0:00:16]} Nd5 {[%emt 0:00:23]} 24. g4 {[%emt 0:03:18]} g6 {[%emt 0:00:58]} 25. Ng3 {[%emt 0:00:14]} Rxc3 {[%emt 0:00:33]} 26. Rf1 {[%emt 0:01:45]} Rf3 {[%emt 0:01:35]} 27. Kb2 {[%emt 0:08:24]} Rc8 {[%emt 0:01:13]} 28. Re2 {[%emt 0:01:15]} Rc4 {[%emt 0:07:22]} 29. Ne4 {[%emt 0:12:54]} Rf4 {[%emt 0:01:17]} 30. f3 {[%emt 0:00:26]} Nf6 {[%emt 0:02:09]} 31. Nxf6+ {[%emt 0:00:42]} Rxf6 {[%emt 0:00:08]} 32. Rg2 {[%emt 0:00:29]} Rff4 33. a3 Rc5 {[%emt 0:05:07]} 34. Rgf2 {[%emt 0:03:58]} Kf8 {[%emt 0:00:47]} 35. Rh2 {[%emt 0:00:46]} Ke7 {[%emt 0:00:45]} 36. Rh3 {[%emt 0:02:21]} Kd6 {[%emt 0:01:51]} 37. Kb3 {[%emt 0:00:30]} Rd5 {[%emt 0:01:41]} 38. Kc3 {[%emt 0:00:55]} Kc5 {[%emt 0:00:23]} 39. Re1 {[%emt 0:02:33]} a5 {[%emt 0:01:01]} 40. Re4 {[%emt 0:01:03]} Rxe4 {[%emt 0:02:21]} 41. fxe4 {[%emt 0:15:10]} Rd7 {[%emt 0:15:57]} 42. Rf3 {[%emt 0:00:33]} b6 {[%emt 0:01:44]} 43. Rd3 {[%emt 0:02:13]} Rxd3+ {[%emt 0:00:04]} 44. Kxd3 {[%emt 0:01:25]} f5 {[%emt 0:00:34]} 45. exf5 {[%emt 0:08:27]} exf5 {[%emt 0:00:52]} 46. h5 {[%emt 0:00:28]} gxh5 {[%emt 0:00:35]} 47. gxf5 {[%emt 0:03:10]} Kd5 {[%emt 0:00:26]} 48. c4+ {[%emt 0:03:23]} Ke5 {[%emt 0:00:13]} 49. Kc3 {[%emt 0:01:09]} h4 {[%emt 0:00:08]} 50. f6 {[%emt 0:00:14]} Kxf6 {[%emt 0:00:09]} 51. Kd4 {[%emt 0:00:12]} h3 {[%emt 0:00:10]} 52. Kd5 {[%emt 0:00:06]} h2 {[%emt 0:00:03]} 53. Kc6 {[%emt 0:00:16]} h1=Q+ {[%emt 0:00:08]} 54. Kxb6 {[%emt 0:00:04]} Qa1 {[%emt 0:00:19]} 55. c5 {[%emt 0:00:10]} Qxa3 {[%emt 0:00:12]} 56. c6 {[%emt 0:00:05]} Qc3 {[%emt 0:00:05]} 57. c7 {[%emt 0:00:09]} Qxc7+ {[%emt 0:00:19]} 58. Kxc7 {[%emt 0:00:09]} a4 {[%emt 0:00:05]} 0-1

[Event "GER-ch Youth U10 2020"]
[Site "Willingen"]
[Date "2020.10.29"]
[Round "4.20"]
[White "Wolff, Calvin"]
[Black "Herrmann, Arthur"]
[Result "0-1"]
[ECO "B52"]
[WhiteElo "1219"]
[BlackElo "1151"]
[Annotator "NA RC"]
[PlyCount "120"]
[EventDate "2020.10.27"]
[EventType "swiss"]
[EventRounds "7"]
[EventCountry "GER"]
[SourceTitle "playchess.com"]
[Source "ChessBase"]
[SourceQuality "1"]
[TimeControl "40/4500+30:900+30"]

1. e4 {[%emt 0:00:00]} c5 {[%emt 0:00:00]} 2. Nf3 {[%emt 0:01:01]} d6 {[%emt 0:00:00]} 3. Bb5+ {[%emt 0:00:43]} Bd7 {[%emt 0:00:07]} 4. Bxd7+ {[%emt 0:00:47]} Qxd7 {[%emt 0:00:16]} 5. Nc3 {[%emt 0:05:39]} Nc6 {[%emt 0:01:08]} 6. d4 {[%emt 0:01:54]} cxd4 {[%emt 0:00:51]} 7. Nxd4 {[%emt 0:01:02]} Nf6 {[%emt 0:01:02]} 8. Bg5 {[%emt 0:02:55]} h6 {[%emt 0:10:59]} 9. Bh4 {[%emt 0:02:32]} e6 {[%emt 0:02:54]} 10. f4 {[%emt 0:11:39]} Be7 {[%emt 0:01:47]} 11. Bg3 {[%emt 0:01:47]} Nxd4 {[%emt 0:08:17]} 12. Qxd4 {[%emt 0:00:31]} h5 {[%emt 0:04:04]} 13. h3 {[%emt 0:01:16]} Qc6 {[%emt 0:05:04]} 14. e5 {[%emt 0:03:31]} dxe5 {[%emt 0:03:39]} 15. fxe5 {[%emt 0:00:29]} Bc5 {[%emt 0:01:42]} 16. Qa4 {[%emt 0:00:56]} Qxa4 {[%emt 0:00:39]} 17. Nxa4 {[%emt 0:00:09]} Ne4 {[%emt 0:00:25]} 18. Nxc5 {[%emt 0:00:52]} Nxg3 {[%emt 0:01:32]} 19. Rg1 {[%emt 0:00:10]} b6 {[%emt 0:00:38]} 20. Nb7 {[%emt 0:02:31]} Ke7 {[%emt 0:01:44]} 21. Kf2 {[%emt 0:01:02]} Nf5 {[%emt 0:05:41]} 22. Rad1 {[%emt 0:00:43]} Rab8 {[%emt 0:03:20]} 23. Nd6 {[%emt 0:01:55]} Rhd8 {[%emt 0:01:15]} 24. Nxf5+ {[%emt 0:00:13]} exf5 {[%emt 0:00:15]} 25. Ke3 {[%emt 0:00:41]} Ke6 {[%emt 0:01:32]} 26. Kf4 {[%emt 0:00:30]} Rbc8 {[%emt 0:01:55]} 27. Rxd8 {[%emt 0:00:15]} Rxd8 {[%emt 0:00:13]} 28. Rc1 {[%emt 0:01:55]} Rd4+ {[%emt 0:02:30]} 29. Kf3 {[%emt 0:00:39]} Kxe5 {[%emt 0:00:58]} 30. Re1+ {[%emt 0:00:14]} Re4 {[%emt 0:02:39]} 31. Rd1 {[%emt 0:00:36]} Ke6 {[%emt 0:02:15]} 32. Rd8 {[%emt 0:00:11]} Ra4 {[%emt 0:02:14]} 33. a3 {[%emt 0:00:17]} g6 {[%emt 0:01:40]} 34. Rd1 {[%emt 0:02:54]} g5 {[%emt 0:01:40]} 35. Rd8 {[%emt 0:00:15]} h4 {[%emt 0:01:00]} 36. g3 {[%emt 0:01:01]} g4+ {[%emt 0:05:22]} 37. hxg4 {[%emt 0:00:28]} fxg4+ {[%emt 0:00:15]} 38. Kg2 {[%emt 0:00:32]} h3+ {[%emt 0:01:30]} 39. Kh2 Rc4 {[%emt 0:03:38]} 40. c3 {[%emt 0:00:32]} Re4 {[%emt 0:01:18]} 41. Rd2 {[%emt 0:15:53]} f6 {[%emt 0:19:20]} 42. Rf2 {[%emt 0:00:37]} Ke5 43. Rd2 {[%emt 0:00:39]} a6 {[%emt 0:01:41]} 44. Kg1 {[%emt 0:00:54]} Re1+ {[%emt 0:00:00]} 45. Kh2 {[%emt 0:00:00]} Re3 {[%emt 0:00:00]} 46. Rf2 {[%emt 0:00:00]} b5 {[%emt 0:00:00]} 47. Rd2 {[%emt 0:00:00]} Rf3 {[%emt 0:00:00]} 48. Re2+ {[%emt 0:00:00]} Kf5 49. Rd2 a5 {[%emt 0:00:00]} 50. Rd5+ {[%emt 0:00:00]} Ke4 {[%emt 0:00:00]} 51. Rxb5 {[%emt 0:00:00]} Rf2+ {[%emt 0:00:00]} 52. Kh1 {[%emt 0:00:00]} Kf3 {[%emt 0:00:00]} 53. c4 {[%emt 0:00:00]} Kxg3 {[%emt 0:00:00]} 54. Rb3+ {[%emt 0:00:00]} Rf3 {[%emt 0:00:00]} 55. Rc3 {[%emt 0:00:00]} Rxc3 {[%emt 0:00:51]} 56. bxc3 {[%emt 0:00:00]} Kf2 {[%emt 0:00:31]} 57. c5 {[%emt 0:00:00]} g3 {[%emt 0:00:09]} 58. c6 {[%emt 0:00:00]} g2+ {[%emt 0:00:14]} 59. Kh2 {[%emt 0:00:00]} g1=Q+ {[%emt 0:00:18]} 60. Kxh3 {[%emt 0:00:00]} Qg3# 0-1